lending/lending_fUSD_20240112
["ID","MTS","AMOUNT","RATE_DAILY","PERIOD"]
[311335641,1705063937322,-1331.16,0.00026909,2]
[311335642,1705063937331,-3318.66,0.00026909,2]
[311335643,1705063937341,-1074.41,0.00026975,2]
[311335644,1705063937350,-4313.59,0.00026975,5]
[311335645,1705063937359,-500.0,0.00026975,2]
[311335646,1705063937368,-2141.96,0.00026975,2]
[311335647,1705063937377,-763.76,0.00026975,2]
[311335648,1705063937388,-13400.37,0.00026975,2]
[311335649,1705063937397,-4452.05,0.00026975,2]
[311335650,1705063937407,-500.0,0.00026975,2]
[311335651,1705063937416,-5995.38,0.00026975,2]
[311335652,1705063937425,-966.26,0.00026975,2]
[311335653,1705063937434,-660.56,0.00026975,2]
[311335654,1705063937443,-568.04,0.00026975,2]
[311335655,1705063937452,-1008.99,0.00026975,2]
[311335656,1705063937462,-615.37,0.00026975,2]
[311335657,1705063937472,-797.96,0.00026975,2]
[311335658,1705063937482,-1371.29,0.00026975,2]
[311335659,1705063937491,-686.32,0.00026975,2]
[311335660,1705063937501,-500.0,0.00026975,2]
[311335661,1705063937511,-3981.87,0.00026975,2]
[311335662,1705063937520,-584.53,0.00026975,2]
[311335663,1705063937530,-610.53,0.00026975,2]
[311335664,1705063937542,-766.02,0.00026975,2]
[311335665,1705063937552,-621.74,0.00026975,2]
[311335666,1705063937561,-2752.63,0.00026975,2]
[311335667,1705063937571,-1378.37,0.00026975,2]
[311335668,1705063937581,-500.0,0.00026975,2]
[311335669,1705063937590,-922.86,0.00026975,2]
[311335670,1705063937599,-712.79,0.00026975,2]
[311335671,1705063937608,-624.87,0.00026975,2]
[311335672,1705063937618,-500.0,0.00026975,2]
[311335673,1705063937627,-500.0,0.00026975,2]
[311335674,1705063937636,-6331.44,0.00026975,2]
[311335675,1705063937645,-995.86,0.00026975,2]
[311335676,1705063937655,-652.82,0.00026975,2]
[311335677,1705063937664,-6343.23,0.00026975,2]
[311335678,1705063937673,-1936.38,0.00026975,2]
[311335679,1705063937682,-538.63,0.00026975,2]
[311335680,1705063937691,-530.12,0.00026975,2]
[311335681,1705063937701,-905.93,0.00026975,2]
[311335682,1705063937710,-500.0,0.00026975,2]
[311335683,1705063937719,-500.0,0.00026975,2]
[311335684,1705063937729,-1330.98,0.00026975,2]
[311335685,1705063937738,-584.23,0.00026975,2]
[311335686,1705063937749,-1834.87,0.00026975,2]
[311335687,1705063937758,-2275.08,0.00026975,2]
[311335688,1705063937768,-3572.07,0.00026975,2]
[311335689,1705063937777,-558.34,0.00026975,2]
[311335690,1705063937789,-1688.4,0.00026975,2]
[311335691,1705063937798,-1346.26,0.00026975,2]
[311335692,1705063937807,-1004.34,0.00026975,2]
[311335693,1705063937816,-598.68,0.00026975,2]
[311335694,1705063937825,-929.29,0.00026975,2]
[311335695,1705063937835,-1187.5,0.00026975,2]
[311335696,1705063937845,-500.0,0.00026975,2]
[311335697,1705063937854,-937.32,0.00026975,2]
[311335698,1705063937863,-753.23,0.00026975,2]
[311335699,1705063937873,-507.51,0.00026975,2]
[311335700,1705063937881,-565.97881654,0.00026976,2]
[311335701,1705063937889,-522.02,0.00026976,2]
[311335702,1705063937897,-500.0,0.00026976,2]
[311335703,1705063937904,-500.0,0.00026976,2]
[311335704,1705063937912,-500.0,0.00026976,2]
[311335705,1705063937921,-500.0,0.00026976,2]
[311335706,1705063937930,-2353.43,0.00026976,2]
[311335707,1705063937939,-500.0,0.00026976,2]
[311335708,1705063937949,-762.84,0.00026976,2]
[311335709,1705063937958,-759.51,0.00026976,2]
[311335710,1705063937968,-500.0,0.00026976,2]
[311335711,1705063937977,-152.71882671,0.00026976,2]
[311335712,1705063937986,-500.0,0.00026976,2]
[311335713,1705063937996,-500.0,0.00026976,2]
[311335714,1705063938005,-500.0,0.00026976,2]
[311335715,1705063938015,-500.0,0.00026976,2]
[311335716,1705063938024,-500.0,0.00026976,2]
[311335717,1705063938038,-500.0,0.00026976,2]
[311335718,1705063938047,-500.0,0.00026976,2]
[311335719,1705063938057,-538.07,0.00026976,2]
[311335720,1705063938067,-654.77,0.00026976,2]
[311335721,1705063938076,-500.0,0.00026976,2]
[311335722,1705063938085,-500.0,0.00026976,2]
[311335723,1705063938094,-368.56851964,0.00026976,2]
[311335724,1705063938104,-500.0,0.00026976,2]
[311335725,1705063938114,-500.0,0.00026976,2]
[311335726,1705063938123,-2642.46,0.00026976,2]
[311335727,1705063938132,-500.0,0.00026976,2]
[311335728,1705063938142,-535.86,0.00026976,2]
[311335729,1705063938151,-950.9,0.00026976,2]
[311335730,1705063938161,-536.71,0.00026976,2]
[311335731,1705063938170,-500.0,0.00026976,2]
[311335732,1705063938179,-500.0,0.00026976,2]
[311335733,1705063938189,-500.0,0.00026976,2]
[311335734,1705063938199,-693.32,0.00026976,2]
[311335735,1705063938209,-500.0,0.00026976,2]
[311335736,1705063938218,-564.65577063,0.00026976,2]
[311335737,1705063938228,-568.04,0.00026976,2]
[311335738,1705063938237,-500.0,0.00026976,2]
[311335739,1705063938247,-500.0,0.00026976,2]
[311335740,1705063938257,-323.97846517,0.00026976,2]
[311335741,1705063938266,-500.0,0.00026976,2]
[311335742,1705063938276,-500.0,0.00026976,2]
[311335743,1705063938287,-275.3087601,0.00026976,2]
[311335744,1705063938297,-500.0,0.00026976,2]
[311335745,1705063938307,-500.0,0.00026976,2]
[311335746,1705063938316,-500.0,0.00026976,2]
[311335747,1705063938325,-603.25,0.00026976,2]
[311335748,1705063938334,-500.0,0.00026976,2]
[311335749,1705063938343,-500.0,0.00026976,2]
[311335750,1705063938353,-500.0,0.00026976,2]
[311335751,1705063938362,-500.0,0.00026976,2]
[311335752,1705063938372,-500.0,0.00026976,2]
[311335753,1705063938382,-500.0,0.00026976,2]
[311335754,1705063938391,-500.0,0.00026976,2]
[311335755,1705063938400,-500.0,0.00026976,2]
[311335756,1705063938410,-819.21,0.00026976,2]
[311335757,1705063938420,-189.40091171,0.00026976,2]
[311335758,1705063938430,-500.0,0.00026976,2]
[311335759,1705063938439,-625.04,0.00026976,2]
[311335760,1705063938449,-584.87,0.00026976,2]
[311335761,1705063938459,-500.0,0.00026976,2]
[311335762,1705063938468,-526.38,0.00026976,2]
[311335763,1705063938478,-550.56,0.00026976,2]
[311335764,1705063938488,-500.0,0.00026976,2]
[311335765,1705063938497,-500.0,0.00026976,2]
[311335766,1705063938507,-624.58,0.00026976,2]
[311335767,1705063938517,-534.74,0.00026976,2]
[311335768,1705063938526,-500.0,0.00026976,2]
[311335769,1705063938536,-745.45,0.00026976,2]
[311335770,1705063938546,-392.30199244,0.00026976,2]
[311335771,1705063938556,-595.28,0.00026976,2]
[311335772,1705063938565,-526.79,0.00026976,2]
[311335773,1705063938576,-500.0,0.00026976,2]
[311335774,1705063938585,-627.56,0.00026976,2]
[311335775,1705063938595,-503.09,0.00026976,2]
[311335776,1705063938608,-500.0,0.00026976,2]
[311335777,1705063938617,-151.75,0.00026976,2]
[311335778,1705063938626,-604.12,0.00026976,2]
[311335779,1705063938639,-500.0,0.00026976,2]
[311335780,1705063938649,-500.0,0.00026976,2]
[311335781,1705063938659,-807.85,0.00026976,2]
[311335782,1705063938670,-500.0,0.00026976,2]
[311335783,1705063938680,-302.63161218,0.00026976,2]
[311335784,1705063938689,-500.0,0.00026976,2]
[311335785,1705063938700,-547.95,0.00026976,2]
[311335786,1705063938710,-579.89,0.00026976,2]
[311335787,1705063938720,-548.75,0.00026976,2]
[311335788,1705063938730,-1230.23,0.00026976,2]
[311335789,1705063938740,-1043.35,0.00026976,2]
[311335790,1705063938750,-537.69,0.00026976,2]
[311335791,1705063938761,-500.0,0.00026976,2]
[311335792,1705063938771,-3508.3,0.00026976,2]
[311335793,1705063938780,-619.56,0.00026976,2]
[311335794,1705063938791,-939.84,0.00026976,2]
[311335795,1705063938800,-2401.03,0.00026976,5]
[311335796,1705063938809,-500.0,0.00026976,2]
[311335797,1705063938819,-505.5,0.00026976,2]
[311335798,1705063938828,-1105.06,0.00026976,2]
[311335799,1705063938837,-522.95,0.00026976,2]
[311335800,1705063938847,-1354.24,0.00026976,2]
[311335801,1705063938856,-429.71835049,0.00026976,2]
[311335802,1705063938865,-500.0,0.00026976,2]
[311335803,1705063938874,-1368.86,0.00026976,2]
[311335804,1705063938883,-772.0,0.00026976,2]
[311335805,1705063938893,-705.07,0.00026976,2]
[311335806,1705063938902,-1064.54,0.00026976,2]
[311335807,1705063938912,-660.22,0.00026976,2]
[311335808,1705063938920,-917.47,0.00026976,2]
[311335809,1705063938930,-608.43,0.00026976,2]
[311335810,1705063938939,-500.0,0.00026976,2]
[311335811,1705063938948,-1227.15,0.00026976,2]
[311335812,1705063938957,-500.0,0.00026976,2]
[311335813,1705063938966,-500.0,0.00026976,2]
[311335814,1705063938975,-3542.34,0.00026976,2]
[311335815,1705063938985,-873.32,0.00026976,2]
[311335816,1705063938994,-2030.8,0.00026976,2]
[311335817,1705063939004,-804.67,0.00026976,2]
[311335818,1705063939013,-500.0,0.00026976,2]
[311335819,1705063939022,-751.35,0.00026976,2]
[311335820,1705063939032,-681.41,0.00026976,2]
[311335821,1705063939043,-550.77,0.00026976,2]
[311335822,1705063939052,-568.41,0.00026976,2]
[311335823,1705063939061,-1040.93,0.00026976,2]
[311335824,1705063939071,-500.0,0.00026976,2]
[311335825,1705063939080,-500.0,0.00026976,2]
[311335826,1705063939089,-500.0,0.00026976,2]
[311335827,1705063939098,-837.58,0.00026976,2]
[311335828,1705063939107,-1259.47,0.00026976,2]
[311335829,1705063939117,-645.64,0.00026976,2]
[311335830,1705063939126,-500.0,0.00026976,2]
[311335831,1705063939136,-500.0,0.00026976,2]
[311335832,1705063939145,-528.46,0.00026976,2]
[311335833,1705063939154,-843.77,0.00026976,2]
[311335834,1705063939163,-500.0,0.00026976,2]
[311335835,1705063939173,-500.0,0.00026976,2]
[311335836,1705063939183,-500.0,0.00026976,2]
[311335837,1705063939196,-521.61,0.00026976,2]
[311335838,1705063939205,-500.0,0.00026976,2]
[311335839,1705063939215,-500.0,0.00026976,2]
[311335840,1705063939225,-500.0,0.00026976,2]
[311335841,1705063939234,-625.33,0.00026976,2]
[311335842,1705063939244,-1634.05,0.00026976,2]
[311335843,1705063939254,-709.97,0.00026976,2]
[311335844,1705063939263,-835.12,0.00026976,2]
[311335845,1705063939273,-1018.72,0.00026976,2]
[311335846,1705063939282,-1257.65,0.00026976,2]
[311335847,1705063939294,-1312.63,0.00026976,2]
[311335848,1705063939303,-511.76,0.00026976,2]
[311335849,1705063939313,-500.0,0.00026976,2]
[311335850,1705063939322,-500.0,0.00026976,2]
[311335851,1705063939333,-500.0,0.00026976,2]
[311335852,1705063939342,-500.0,0.00026976,2]
[311335853,1705063939352,-539.08,0.00026976,2]
[311335854,1705063939362,-1320.71,0.00026976,2]
[311335855,1705063939372,-736.76,0.00026976,2]
[311335856,1705063939382,-375.42185092,0.00026976,2]
[311335857,1705063939391,-500.0,0.00026976,2]
[311335858,1705063939401,-969.0,0.00026976,2]
[311335859,1705063939410,-1026.07,0.00026976,2]
[311335860,1705063939420,-913.29,0.00026976,2]
[311335861,1705063939429,-721.94,0.00026976,2]
[311335862,1705063939439,-155.0,0.00027,2]
[311335863,1705063939448,-12283.43506918,0.00027,2]
[311335864,1705063939458,-369.42972607,0.00027,2]
[311335865,1705063939468,-600.0,0.00027,3]
[311335866,1705063939478,-166.79,0.00027133,2]
[311335867,1705063939487,-512.15131646,0.00027149,2]
[311335868,1705063939498,-500.0,0.0002715,2]
[311335869,1705063939508,-4223.75,0.00027183,2]
[311335870,1705063939519,-1122.89,0.00027183,2]
[311335871,1705063939529,-945.58,0.00027183,2]
[311335872,1705063939539,-620.52,0.00027183,2]
[311335873,1705063939549,-703.0,0.00027183,2]
[311335874,1705063939560,-1331.16,0.00027183,2]
[311335875,1705063939571,-3318.66,0.00027183,2]
[311335876,1705063939581,-200.0,0.00027194,2]
[311335877,1705063939591,-534.95,0.00027212,2]
[311335878,1705063939602,-581.31,0.00027245,2]
[311335879,1705063939611,-1074.41,0.00027249,2]
[311335880,1705063939622,-4313.59,0.00027249,5]
[311335881,1705063939631,-307.76,0.00027249,2]
[311335882,1705063939641,-2141.96,0.00027249,2]
[311335883,1705063939650,-763.76,0.00027249,2]
[311335884,1705063939661,-13400.37,0.00027249,2]
[311335885,1705063939671,-4452.05,0.00027249,2]
[311335886,1705063939681,-500.0,0.00027249,2]
[311335887,1705063939691,-5995.38,0.00027249,2]
[311335888,1705063939700,-966.26,0.00027249,2]
[311335889,1705063939709,-660.56,0.00027249,2]
[311335890,1705063939718,-568.04,0.00027249,2]
[311335891,1705063939728,-1008.99,0.00027249,2]
[311335892,1705063939738,-615.37,0.00027249,2]
[311335893,1705063939747,-797.96,0.00027249,2]
[311335894,1705063939758,-1371.29,0.00027249,2]
[311335895,1705063939768,-686.32,0.00027249,2]
[311335896,1705063939778,-500.0,0.00027249,2]
[311335897,1705063939791,-3981.87,0.00027249,2]
[311335898,1705063939801,-584.53,0.00027249,2]
[311335899,1705063939811,-610.53,0.00027249,2]
[311335900,1705063939821,-766.02,0.00027249,2]
[311335901,1705063939831,-621.74,0.00027249,2]
[311335902,1705063939841,-2752.63,0.00027249,2]
[311335903,1705063939851,-1378.37,0.00027249,2]
[311335904,1705063939861,-557.12,0.00027249,2]
[311335905,1705063939871,-922.86,0.00027249,2]
[311335906,1705063939880,-712.79,0.00027249,2]
[311335907,1705063939890,-624.87,0.00027249,2]
[311335908,1705063939899,-500.0,0.00027249,2]
[311335909,1705063939909,-500.0,0.00027249,2]
[311335910,1705063939919,-6331.44,0.00027249,2]
[311335911,1705063939929,-995.86,0.00027249,2]
[311335912,1705063939938,-652.82,0.00027249,2]
[311335913,1705063939947,-6343.23,0.00027249,2]
[311335914,1705063939957,-1936.38,0.00027249,2]
[311335915,1705063939967,-538.63,0.00027249,2]
[311335916,1705063939977,-530.12,0.00027249,2]
[311335917,1705063939986,-905.93,0.00027249,2]
[311335918,1705063939995,-500.0,0.00027249,2]
[311335919,1705063940005,-500.0,0.00027249,2]
[311335920,1705063940015,-1330.98,0.00027249,2]
[311335921,1705063940026,-584.23,0.00027249,2]
[311335922,1705063940038,-1834.87,0.00027249,2]
[311335923,1705063940049,-2275.08,0.00027249,2]
[311335924,1705063940062,-3572.07,0.00027249,2]
[311335925,1705063940072,-558.34,0.00027249,2]
[311335926,1705063940082,-1688.4,0.00027249,2]
[311335927,1705063940092,-1346.26,0.00027249,2]
[311335928,1705063940102,-1004.34,0.00027249,2]
[311335929,1705063940112,-598.68,0.00027249,2]
[311335930,1705063940123,-929.29,0.00027249,2]
[311335931,1705063940134,-1187.5,0.00027249,2]
[311335932,1705063940144,-630.56933469,0.00027249,2]
[311335933,1705063940154,-937.32,0.00027249,2]
[311335934,1705063940163,-507.51,0.00027249,2]
[311335935,1705063940173,-753.23,0.00027249,2]
[311335936,1705063940183,-522.02,0.0002725,2]
[311335937,1705063940197,-539.95236386,0.0002725,2]
[311335938,1705063940206,-269.90373131,0.0002725,2]
[311335939,1705063940216,-500.0,0.0002725,2]
[311335940,1705063940226,-534.73854147,0.0002725,2]
[311335941,1705063940236,-2353.43,0.0002725,2]
[311335942,1705063940246,-500.0,0.0002725,2]
[311335943,1705063940256,-762.84,0.0002725,2]
[311335944,1705063940266,-759.51,0.0002725,2]
[311335945,1705063940275,-500.0,0.0002725,2]
[311335946,1705063940287,-379.7286344,0.0002725,2]
[311335947,1705063940298,-198.87760588,0.0002725,2]
[311335948,1705063940308,-500.0,0.0002725,2]
[311335949,1705063940318,-592.01046121,0.0002725,2]
[311335950,1705063940328,-500.0,0.0002725,2]
[311335951,1705063940338,-500.0,0.0002725,2]
[311335952,1705063940349,-394.82929227,0.0002725,2]
[311335953,1705063940359,-538.07,0.0002725,2]
[311335954,1705063940369,-654.77,0.0002725,2]
[311335955,1705063940380,-500.0,0.0002725,2]
[311335956,1705063940390,-500.0,0.0002725,2]
[311335957,1705063940400,-259.14257595,0.0002725,2]
[311335958,1705063940411,-280.13477304,0.0002725,2]
[311335959,1705063940421,-2642.46,0.0002725,2]
[311335960,1705063940432,-500.0,0.0002725,2]
[311335961,1705063940442,-535.86,0.0002725,2]
[311335962,1705063940452,-950.9,0.0002725,2]
[311335963,1705063940462,-536.71,0.0002725,2]
[311335964,1705063940473,-500.0,0.0002725,2]
[311335965,1705063940483,-500.0,0.0002725,2]
[311335966,1705063940494,-500.0,0.0002725,2]
[311335967,1705063940505,-693.32,0.0002725,2]
[311335968,1705063940516,-475.74,0.0002725,2]
[311335969,1705063940527,-568.04,0.0002725,2]
[311335970,1705063940541,-500.0,0.0002725,2]
[311335971,1705063940552,-500.0,0.0002725,2]
[311335972,1705063940563,-462.10427755,0.0002725,2]
[311335973,1705063940574,-500.0,0.0002725,2]
[311335974,1705063940585,-188.5157065,0.0002725,2]
[311335975,1705063940596,-500.0,0.0002725,2]
[311335976,1705063940606,-500.0,0.0002725,2]
[311335977,1705063940617,-603.25,0.0002725,2]
[311335978,1705063940628,-500.0,0.0002725,2]
[311335979,1705063940639,-500.0,0.0002725,2]
[311335980,1705063940650,-500.0,0.0002725,2]
[311335981,1705063940661,-500.0,0.0002725,2]
[311335982,1705063940672,-500.0,0.0002725,2]
[311335983,1705063940682,-228.06528531,0.0002725,2]
[311335984,1705063940692,-500.0,0.0002725,2]
[311335985,1705063940703,-500.0,0.0002725,2]
[311335986,1705063940714,-819.21,0.0002725,2]
[311335987,1705063940724,-500.0,0.0002725,2]
[311335988,1705063940735,-625.04,0.0002725,2]
[311335989,1705063940745,-584.87,0.0002725,2]
[311335990,1705063940756,-500.0,0.0002725,2]
[311335991,1705063940767,-526.38,0.0002725,2]
[311335992,1705063940776,-550.56,0.0002725,2]
[311335993,1705063940789,-500.0,0.0002725,2]
[311335994,1705063940800,-500.0,0.0002725,2]
[311335995,1705063940810,-624.58,0.0002725,2]
[311335996,1705063940820,-534.74,0.0002725,2]
[311335997,1705063940831,-500.0,0.0002725,2]
[311335998,1705063940841,-745.45,0.0002725,2]
[311335999,1705063940851,-595.28,0.0002725,2]
[311336000,1705063940861,-526.79,0.0002725,2]
[311336001,1705063940871,-500.0,0.0002725,2]
[311336002,1705063940881,-627.56,0.0002725,2]
[311336003,1705063940891,-503.09,0.0002725,2]
[311336004,1705063940901,-500.0,0.0002725,2]
[311336005,1705063940911,-151.75,0.0002725,2]
[311336006,1705063940921,-604.12,0.0002725,2]
[311336007,1705063940931,-500.0,0.0002725,2]
[311336008,1705063940942,-316.06022597,0.0002725,2]
[311336009,1705063940951,-807.85,0.0002725,2]
[311336010,1705063940962,-500.0,0.0002725,2]
[311336011,1705063940973,-500.0,0.0002725,2]
[311336012,1705063940984,-547.95,0.0002725,2]
[311336013,1705063940994,-579.89,0.0002725,2]
[311336014,1705063941004,-548.75,0.0002725,2]
[311336015,1705063941015,-1230.23,0.0002725,2]
[311336016,1705063941025,-1043.35,0.0002725,2]
[311336017,1705063941036,-537.69,0.0002725,2]
[311336018,1705063941047,-500.0,0.0002725,2]
[311336019,1705063941057,-3508.3,0.0002725,2]
[311336020,1705063941068,-619.56,0.0002725,2]
[311336021,1705063941078,-939.84,0.0002725,2]
[311336022,1705063941104,-2401.03,0.0002725,5]
[311336023,1705063941124,-500.0,0.0002725,2]
[311336024,1705063941134,-505.5,0.0002725,2]
[311336025,1705063941145,-1105.06,0.0002725,2]
[311336026,1705063941156,-522.95,0.0002725,2]
[311336027,1705063941167,-1354.24,0.0002725,2]
[311336028,1705063941177,-500.0,0.0002725,2]
[311336029,1705063941187,-1368.86,0.0002725,2]
[311336030,1705063941200,-772.0,0.0002725,2]
[311336031,1705063941211,-705.07,0.0002725,2]
[311336032,1705063941221,-1064.54,0.0002725,2]
[311336033,1705063941231,-660.22,0.0002725,2]
[311336034,1705063941242,-917.47,0.0002725,2]
[311336035,1705063941252,-608.43,0.0002725,2]
[311336036,1705063941262,-500.0,0.0002725,2]
[311336037,1705063941272,-1227.15,0.0002725,2]
[311336038,1705063941282,-164.57898985,0.0002725,2]
[311336039,1705063941296,-500.0,0.0002725,2]
[311336040,1705063941307,-3542.34,0.0002725,2]
[311336041,1705063941318,-873.32,0.0002725,2]
[311336042,1705063941328,-2030.8,0.0002725,2]
[311336043,1705063941339,-804.67,0.0002725,2]
[311336044,1705063941349,-500.0,0.0002725,2]
[311336045,1705063941360,-751.35,0.0002725,2]
[311336046,1705063941370,-681.41,0.0002725,2]
[311336047,1705063941381,-550.77,0.0002725,2]
[311336048,1705063941391,-568.41,0.0002725,2]
[311336049,1705063941402,-1040.93,0.0002725,2]
[311336050,1705063941413,-500.0,0.0002725,2]
[311336051,1705063941424,-386.84596155,0.0002725,2]
[311336052,1705063941434,-551.74575183,0.0002725,2]
[311336053,1705063941445,-837.58,0.0002725,2]
[311336054,1705063941455,-1259.47,0.0002725,2]
[311336055,1705063941466,-500.0,0.0002725,2]
[311336056,1705063941476,-645.64,0.0002725,2]
[311336057,1705063941486,-321.28318835,0.0002725,2]
[311336058,1705063941497,-528.46,0.0002725,2]
[311336059,1705063941508,-843.77,0.0002725,2]
[311336060,1705063941519,-500.0,0.0002725,2]
[311336061,1705063941529,-500.0,0.0002725,2]
[311336062,1705063941541,-500.0,0.0002725,2]
[311336063,1705063941552,-521.61,0.0002725,2]
[311336064,1705063941564,-500.0,0.0002725,2]
[311336065,1705063941574,-359.52499116,0.0002725,2]
[311336066,1705063941585,-500.0,0.0002725,2]
[311336067,1705063941596,-625.33,0.0002725,2]
[311336068,1705063941607,-1634.05,0.0002725,2]
[311336069,1705063941617,-709.97,0.0002725,2]
[311336070,1705063941628,-835.12,0.0002725,2]
[311336071,1705063941638,-1018.72,0.0002725,2]
[311336072,1705063941648,-1257.65,0.0002725,2]
[311336073,1705063941658,-1312.63,0.0002725,2]
[311336074,1705063941669,-511.76,0.0002725,2]
[311336075,1705063941680,-532.99826315,0.0002725,2]
[311336076,1705063941690,-500.0,0.0002725,2]
[311336077,1705063941702,-500.0,0.0002725,2]
[311336078,1705063941713,-636.57849671,0.0002725,2]
[311336079,1705063941724,-539.08,0.0002725,2]
[311336080,1705063941735,-1320.71,0.0002725,2]
[311336081,1705063941745,-736.76,0.0002725,2]
[311336082,1705063941756,-176.80900192,0.0002725,2]
[311336083,1705063941766,-969.0,0.0002725,2]
[311336084,1705063941776,-1026.07,0.0002725,2]
[311336085,1705063941789,-913.29,0.0002725,2]
[311336086,1705063941800,-721.94,0.0002725,2]
[311336087,1705063941810,-2051.61510222,0.00027394,2]
[311336088,1705063941820,-500.0,0.00027397,2]
[311336089,1705063941830,-500.0,0.00027397,2]
[311336090,1705063941840,-500.0,0.00027397,2]
[311336091,1705063941850,-500.0,0.00027397,2]
[311336092,1705063941861,-500.0,0.00027397,2]
[311336093,1705063941871,-500.0,0.00027397,2]
[311336094,1705063941881,-500.0,0.00027397,2]
[311336095,1705063941891,-500.0,0.00027397,2]
[311336096,1705063941901,-500.0,0.00027397,2]
[311336097,1705063941911,-500.0,0.00027397,2]
[311336098,1705063941922,-500.0,0.00027397,2]
[311336099,1705063941932,-500.0,0.00027397,2]
[311336100,1705063941942,-500.0,0.00027397,2]
[311336101,1705063941952,-494.38391948,0.00027397,2]
[311336102,1705063941962,-500.0,0.00027397,2]
[311336103,1705063941973,-511.95876091,0.00027397,2]
[311336104,1705063941983,-1000.0,0.00027397,2]
[311336105,1705063941994,-1000.0,0.00027397,2]
[311336106,1705063942248,-1000.0,0.00027397,2]
[311336107,1705063942258,-1000.0,0.00027397,2]
[311336108,1705063942267,-1000.0,0.00027397,2]
[311336109,1705063942277,-1000.0,0.00027397,2]
[311336110,1705063942287,-1000.0,0.00027397,2]
[311336111,1705063942297,-1000.0,0.00027397,2]
[311336112,1705063942306,-1011.0855578,0.00027397,2]
[311336113,1705063942316,-500.0,0.00027397,2]
[311336114,1705063942326,-500.0,0.00027397,2]
[311336115,1705063942336,-500.0,0.00027397,2]
[311336116,1705063942346,-500.0,0.00027397,2]
[311336117,1705063942356,-500.0,0.00027397,2]
[311336118,1705063942366,-500.0,0.00027397,2]
[311336119,1705063942376,-500.0,0.00027397,2]
[311336120,1705063942386,-500.0,0.00027397,2]
[311336121,1705063942395,-370.08,0.00027397,2]
[311336122,1705063942405,-1002.03564499,0.00027397,2]
[311336123,1705063942416,-1000.0,0.00027397,2]
[311336124,1705063942425,-1000.0,0.00027397,2]
[311336125,1705063942435,-1000.0,0.00027397,2]
[311336126,1705063942444,-1000.0,0.00027397,2]
[311336127,1705063942454,-1000.0,0.00027397,2]
[311336128,1705063942467,-1000.0,0.00027397,2]
[311336129,1705063942477,-1000.0,0.00027397,2]
[311336130,1705063942487,-1000.0,0.00027397,2]
[311336131,1705063942496,-1000.0,0.00027397,2]
[311336132,1705063942506,-1000.0,0.00027397,2]
[311336133,1705063942516,-654.52095236,0.00027397,2]
[311336134,1705063942525,-500.0,0.00027397,2]
[311336135,1705063942535,-500.0,0.00027397,2]
[311336136,1705063942547,-576.63067369,0.00027397,2]
[311336137,1705063942557,-500.0,0.00027397,30]
[311336138,1705063942567,-500.0,0.00027397,30]
[311336139,1705063942576,-500.0,0.00027397,30]
[311336140,1705063942586,-500.0,0.00027397,30]